bitfinex/quotes_ETHUSD_20250909
["timestamp","ask_amount","ask_price","bid_price","bid_amount"]
[1757457833776,4.20376601,4312.9,4312.8,0.002]
[1757457834076,1e-08,4313.3,4313.2,2.31846424]
[1757457834481,1e-08,4313.3,4313.2,6.69940885]
[1757457834630,1e-08,4313.3,4313.2,6.67622421]
[1757457834835,1e-08,4313.3,4313.2,7.00987645]
[1757457835034,1e-08,4313.3,4313.2,8.56098039]
[1757457835270,1e-08,4313.3,4313.2,8.22732815]
[1757457838364,1e-08,4313.3,4313.2,9.01932815]
[1757457839989,1e-08,4313.3,4313.2,8.54932815]
[1757457840166,1e-08,4313.3,4313.2,9.01932815]
[1757457841248,1e-08,4313.3,4313.2,12.88232815]
[1757457843285,1e-08,4313.3,4313.2,12.41232815]
[1757457843991,1e-08,4313.3,4313.2,12.52752815]
[1757457846193,1e-08,4313.3,4313.2,11.73552815]
[1757457848485,1e-08,4313.3,4313.2,12.52752815]
[1757457849182,1e-08,4313.3,4313.2,12.98212815]
[1757457849600,1e-08,4313.3,4313.2,12.19012815]
[1757457850583,1e-08,4313.3,4313.2,12.52752815]
[1757457852308,1e-08,4313.3,4313.2,12.04542815]
[1757457855051,1e-08,4313.3,4313.2,12.50112815]
[1757457858068,1e-08,4313.3,4313.2,12.95572815]
[1757457858263,0.026,4313.8,4313.3,5.31841049]
[1757457858466,0.026,4313.8,4313.3,15.46406055]
[1757457858669,0.026,4313.8,4313.3,15.75876055]
[1757457859068,0.026,4313.8,4313.3,15.30416055]
[1757457859378,0.026,4313.8,4313.3,15.75876055]
[1757457860537,0.026,4313.8,4313.3,16.55076055]
[1757457861479,0.026,4313.8,4313.3,16.72773481]
[1757457862784,0.026,4313.8,4313.3,16.27313481]
[1757457863289,0.026,4313.8,4313.3,17.92705148]
[1757457864251,0.026,4313.8,4313.3,16.27313481]
[1757457864864,0.026,4313.8,4313.3,16.72773481]
[1757457865191,0.026,4313.8,4313.4,2.31835674]
[1757457865355,0.026,4313.8,4313.4,10.2951741]
[1757457865698,0.026,4313.8,4313.4,10.5898741]
[1757457866173,0.026,4313.8,4313.4,10.1352741]
[1757457870872,0.026,4313.8,4313.4,13.1352741]
[1757457871073,0.026,4313.8,4313.4,11.47686068]
[1757457873506,0.026,4313.8,4313.4,11.02116068]
[1757457876405,0.026,4313.8,4313.4,10.72646068]
[1757457876605,0.4454,4313.7,4313.4,10.72646068]
[1757457879547,0.001,4313.7,4313.4,11.01456068]
[1757457880406,0.001,4313.7,4313.5,5.318303]
[1757457880649,0.001,4313.7,4313.5,7.95721119]
[1757457880841,0.001,4313.7,4313.5,8.24531119]
[1757457881021,0.001,4313.7,4313.5,8.36051119]
[1757457884011,0.001,4313.7,4313.5,8.07241119]
[1757457885045,0.001,4313.7,4313.5,8.36051119]
[1757457885548,0.001,4313.7,4313.6,3.11024925]
[1757457885757,0.001,4313.7,4313.6,10.16862416]
[1757457886027,0.001,4313.7,4313.6,10.45672416]
[1757457888684,0.001,4313.7,4313.6,10.16862416]
[1757457888843,0.7318,4313.7,4313.6,10.16862416]
[1757457893286,0.2874,4313.7,4313.6,10.16862416]
[1757457895399,0.2874,4313.7,4313.6,8.51235319]
[1757457897511,0.001,4313.7,4313.6,8.51235319]
[1757457905521,0.2884,4313.7,4313.6,8.51235319]
[1757457913528,0.7535,4313.7,4313.6,8.51235319]
[1757457915365,0.2884,4313.7,4313.6,4.66135319]
[1757457915552,1.2063,4313.7,4313.5,2.43345284]
[1757457915756,0.2884,4313.7,4313.6,2.31824925]
[1757457915930,0.2884,4313.7,4313.6,8.55462397]
[1757457916269,1.2063,4313.7,4313.6,8.55462397]
[1757457916428,0.001,4313.7,4313.6,15.40462397]
[1757457916633,0.001,4313.7,4313.6,16.19662397]
[1757457918161,0.001,4313.7,4313.6,18.14397958]
[1757457918368,0.001,4313.7,4313.6,20.22377769]
[1757457918866,0.001,4314.2,4313.6,20.22377769]
[1757457918867,0.001,4314.2,4314.1,6.10998057]
[1757457919048,0.4778,4314.8,4314.7,2.31765823]
[1757457919248,0.4778,4314.8,4314.7,11.55403295]
[1757457919249,0.9429,4314.8,4314.7,11.55403295]
[1757457919569,0.7775,4314.8,4314.7,11.55403295]
[1757457920069,0.7775,4314.8,4314.7,12.34603295]
[1757457923260,0.7785,4314.8,4314.7,12.34603295]
[1757457925972,0.7785,4314.8,4314.7,12.46123295]
[1757457926867,0.3134,4314.8,4314.7,12.46123295]
[1757457927040,0.7785,4314.8,4314.7,13.77944697]
[1757457928328,0.026,4314.8,4314.7,13.77944697]
[1757457928551,0.026,4314.8,4314.7,14.06824697]
[1757457932855,0.026,4314.8,4314.7,13.77944697]
[1757457933386,0.3284,4314.8,4314.7,13.77944697]
[1757457933579,0.7758,4314.8,4314.7,13.77944697]
[1757457934892,1.2545,4314.8,4314.7,10.60007225]
[1757457935096,1.2545,4314.8,4314.7,9.28185823]
[1757457937497,0.7758,4314.8,4314.7,9.28185823]
[1757457938593,0.3284,4314.8,4314.7,9.28185823]
[1757457938758,0.026,4314.8,4314.7,9.59225823]
[1757457939098,0.026,4314.8,4314.7,9.28185823]
[1757457939278,0.3284,4314.8,4314.7,9.28185823]
[1757457939484,0.7758,4314.8,4314.7,9.28185823]
[1757457942482,0.7758,4314.8,4314.7,16.66448952]
[1757457942669,0.3284,4314.8,4314.7,16.66448952]
[1757457943193,0.026,4314.8,4314.7,16.66448952]
[1757457944313,0.3284,4314.8,4314.7,16.66448952]
[1757457944507,0.7758,4314.8,4314.7,16.66448952]
[1757457946602,0.3284,4314.8,4314.7,16.66448952]
[1757457947476,1.2545,4314.8,4314.7,16.66448952]
[1757457947689,0.3284,4314.8,4314.7,9.28185823]
[1757457947890,1.2545,4314.8,4314.7,9.28185823]
[1757457950391,0.7758,4314.8,4314.7,9.28185823]
[1757457950580,1.2545,4314.8,4314.7,9.28185823]
[1757457952696,0.7758,4314.8,4314.7,9.28185823]
[1757457954820,1.2545,4314.8,4314.7,9.28185823]
[1757457955530,1.2545,4314.8,4314.7,9.27785823]
[1757457958390,1.38395,4314.8,4314.7,2.43285823]
[1757457958609,1.38395,4314.8,4314.4,2.31781939]
[1757457958809,0.45785,4314.8,4314.7,2.31765823]
[1757457959132,0.3284,4314.8,4314.7,2.31765823]
[1757457959535,1.2545,4314.8,4314.7,2.31765823]
[1757457960621,1.2545,4314.8,4314.4,3.0]
[1757457960821,0.9261,4314.7,4314.4,2.31780156]
[1757457961019,0.9261,4314.7,4314.2,2.31792684]
[1757457961020,0.9261,4314.6,4314.5,2.31774623]
[1757457961329,1.2285,4314.6,4314.5,2.31774623]
[1757457963531,1.2285,4314.6,4314.3,2.31785505]
[1757457963729,0.3024,4314.6,4314.5,2.31776567]
[1757457964443,1.2653,4314.6,4314.5,2.31776567]
[1757457964842,1.57633,4314.6,4314.2,2.31788042]
[1757457965019,1.57633,4314.6,4314.1,0.002]
[1757457965020,0.9629,4314.5,4314.1,0.002]
[1757457965219,0.9629,4314.5,4314.2,2.3179157]
[1757457965422,0.61343,4314.6,4314.3,2.3178468]
[1757457965423,0.4931,4314.4,4314.3,2.3178468]
[1757457965727,1.269,4314.4,4314.2,2.31792485]
[1757457966059,0.9629,4314.3,4314.2,2.31792485]
[1757457966238,1.269,4314.3,4314.2,2.31792485]
[1757457966637,1.427003,4314.3,4314.1,2.31997358]
[1757457966838,0.9629,4314.2,4314.1,0.002]
[1757457967227,1.269,4314.2,4314.1,0.002]
[1757457970865,0.3061,4314.2,4314.1,0.002]
[1757457971163,0.4698,4314.4,4314.1,0.002]
[1757457971164,0.026,4314.8,4314.1,8.76663129]
[1757457971338,0.026,4314.8,4314.7,2.31765823]
[1757457971541,0.026,4314.8,4314.7,2.43285823]
[1757457973022,0.8252,4314.8,4314.7,2.43285823]
[1757457973272,1.295,4314.8,4314.1,0.002]
[1757457973424,1.4102,4314.8,4314.2,2.31791853]
[1757457973628,1.90247115,4314.7,4314.2,2.31791853]
[1757457973828,0.3061,4314.3,4314.2,2.31791853]
[1757457974069,5.12,4314.3,4314.2,2.31791853]
[1757457975754,5.12,4314.3,4314.1,0.1172]
[1757457975955,4.6502,4314.3,4314.2,2.31792684]
[1757457976134,4.6269,4314.3,4314.2,2.31792684]
[1757457976466,4.6269,4314.3,4314.1,0.1172]
[1757457976467,5.43376165,4314.3,4314.1,0.1172]
[1757457976674,5.43376165,4314.3,4314.1,0.002]
[1757457979502,0.4698,4314.2,4314.1,0.002]
[1757457979671,2.78772684,4314.2,4314.1,0.002]
[1757457979877,3.58692684,4314.2,4314.1,0.002]
[1757457980074,4.60539804,4314.2,4314.1,0.002]
[1757457990111,8.45539804,4314.2,4314.1,0.002]
[1757458003118,8.67211448,4314.2,4314.1,0.002]
[1757458003848,12.5941513,4314.2,4314.1,0.002]
[1757458004002,13.09350243,4314.2,4314.1,0.002]
[1757458006356,19.33671613,4314.2,4314.1,0.002]
[1757458006518,21.77771613,4314.2,4314.1,0.002]
[1757458006847,21.77780702,4314.2,4314.1,0.002]
[1757458007033,21.00190702,4314.2,4314.1,0.002]
[1757458007239,21.75210702,4314.2,4314.1,0.002]
[1757458011383,21.75310702,4314.2,4314.1,0.002]
[1757458013746,21.75327386,4314.2,4314.1,0.002]
[1757458014644,17.90327386,4314.2,4314.1,0.002]
[1757458014957,21.75127386,4314.2,4314.1,0.002]
[1757458020681,28.87127386,4314.2,4314.1,0.002]
[1757458021754,6.11019551,4313.7,4313.6,0.002]
[1757458021947,19.18374687,4313.7,4313.6,0.002]
[1757458022252,20.914798,4313.7,4313.6,0.002]
[1757458022486,20.432098,4313.7,4313.6,0.002]
[1757458025807,9.5918843,4313.7,4313.6,0.3183]
[1757458026007,12.14853317,4313.7,4313.6,1.2531]
[1757458026551,12.14853317,4313.7,4313.6,0.3183]
[1757458026753,12.14853317,4313.7,4313.6,0.002]
[1757458027156,12.14853317,4313.7,4313.6,0.3183]
[1757458028227,13.25433317,4313.7,4313.6,0.002]
[1757458028428,20.43280713,4313.7,4313.6,0.002]
[1757458028623,20.91550713,4313.7,4313.6,0.002]
[1757458029334,23.35650713,4313.7,4313.6,0.002]
[1757458030328,23.35650713,4313.7,4313.0,0.002]
[1757458030329,6.11067928,4312.8,4312.7,0.002]
[1757458030662,19.56081109,4312.8,4312.7,0.002]
[1757458030819,20.06087135,4312.8,4312.7,0.002]
[1757458031025,20.15370192,4312.8,4312.7,0.002]
[1757458031226,18.73574166,4312.8,4312.7,0.002]
[1757458031425,13.71084899,4312.8,4312.7,0.002]
[1757458032064,14.02464899,4312.8,4312.7,0.002]
[1757458032262,13.71084899,4312.8,4312.7,0.3183]
[1757458032440,9.86284899,4312.8,4312.7,0.8178]
[1757458032638,9.86284899,4312.8,4312.7,1.2531]
[1757458032639,12.91884899,4312.8,4312.7,1.2531]
[1757458032840,4.53872796,4312.8,4312.7,1.2531]
[1757458033045,1.78,4312.8,4312.7,1.2531]
[1757458033554,5.632,4312.8,4312.7,1.2531]
[1757458036034,7.95067928,4312.8,4312.7,0.002]
[1757458036469,8.26447928,4312.8,4312.7,0.002]
[1757458036673,9.32278567,4312.8,4312.7,0.002]
[1757458036837,10.76687968,4312.8,4312.7,0.002]
[1757458037232,11.24957968,4312.8,4312.7,0.002]
[1757458037629,10.76687968,4312.8,4312.7,0.002]
[1757458038774,10.85970229,4312.8,4312.7,0.002]
[1757458039070,10.64280828,4312.8,4312.7,0.002]
[1757458041762,10.20760828,4312.8,4312.7,0.002]
[1757458042180,9.89380828,4312.8,4312.7,0.002]
[1757458043287,10.20760828,4312.8,4312.7,0.002]
[1757458048244,14.47257977,4312.8,4312.7,0.002]
[1757458048676,14.47357977,4312.8,4312.7,0.002]
[1757458050485,13.99087977,4312.8,4312.7,0.002]
[1757458053169,14.45247977,4312.8,4312.7,0.002]
[1757458055187,14.952448,4312.8,4312.7,0.002]
[1757458055908,14.490848,4312.8,4312.7,0.002]
[1757458056113,14.055648,4312.8,4312.7,0.002]
[1757458058376,13.741848,4312.8,4312.7,0.3111]
[1757458058571,13.741848,4312.8,4312.7,0.7706]
[1757458058884,13.741848,4312.8,4312.7,0.3111]
[1757458059281,9.097848,4312.8,4312.7,0.7706]
[1757458059485,8.16560101,4312.8,4312.7,1.2018]
[1757458061494,8.16560101,4312.8,4312.7,0.3111]
[1757458061698,8.16560101,4312.8,4312.7,0.002]
[1757458061900,8.47670101,4312.8,4312.7,0.002]
[1757458062100,9.60156957,4312.8,4312.7,0.3111]
[1757458063720,9.60156957,4312.8,4312.7,0.002]
[1757458063721,9.89606957,4312.8,4312.7,0.002]
[1757458063928,9.60156957,4312.8,4312.7,0.3111]
[1757458064310,9.60156957,4312.8,4312.7,0.7706]
[1757458065037,9.60156957,4312.8,4312.7,0.3111]
[1757458068839,5.75256957,4312.8,4312.7,0.3111]
[1757458069055,9.60156957,4312.8,4312.7,0.3111]
[1757458070435,10.02636833,4312.8,4312.7,0.002]
[1757458070745,10.47977308,4312.8,4312.7,0.002]
[1757458070950,10.34946957,4312.8,4312.7,0.002]
[1757458071461,9.89606957,4312.8,4312.7,0.002]
[1757458071960,10.94137568,4312.8,4312.7,0.002]
[1757458073726,10.47977568,4312.8,4312.7,0.002]
[1757458079976,10.94137568,4312.8,4312.7,0.002]
[1757458081584,14.73337568,4312.8,4312.7,0.002]
[1757458081778,22.62928844,4312.8,4312.7,0.002]
[1757458082143,22.62956978,4312.8,4312.7,0.002]
[1757458082342,22.62955239,4312.8,4312.7,0.002]
[1757458087298,10.92345994,4312.8,4312.7,0.002]
[1757458087450,14.02455994,4312.8,4312.7,0.002]
[1757458088383,14.76675994,4312.8,4312.7,0.002]
[1757458089169,14.31865994,4312.8,4312.7,0.002]
[1757458089684,14.02455994,4312.8,4312.7,0.002]
[1757458089869,14.31865994,4312.8,4312.7,0.002]
[1757458090091,14.76675994,4312.8,4312.7,0.002]
[1757458091977,15.25915994,4312.8,4312.7,0.002]
[1757458092763,22.65465239,4312.8,4312.7,0.002]
[1757458095994,3.11089435,4312.4,4312.3,0.002]
[1757458096190,3.1110019,4312.2,4312.1,1e-08]
[1757458096407,18.11228614,4312.2,4312.1,1e-08]
[1757458096572,19.55320645,4312.2,4312.1,1e-08]
[1757458098930,11.665314,4312.2,4312.1,1e-08]
[1757458099086,13.09103767,4312.2,4312.1,1e-08]
[1757458099487,13.58343767,4312.2,4312.1,1e-08]
[1757458099993,13.58343767,4312.2,4312.1,0.00200001]
[1757458100384,13.58443767,4312.2,4312.1,0.00200001]
[1757458101087,13.58401465,4312.2,4312.1,0.00200001]
[1757458101289,12.34941465,4312.2,4312.1,0.28840001]
[1757458101522,12.34941465,4312.2,4312.1,0.74050001]
[1757458102498,11.84899434,4312.2,4312.1,0.74050001]
[1757458102992,10.94179434,4312.2,4312.1,1.19060001]
[1757458106023,10.94179434,4312.2,4312.1,0.74050001]
[1757458108512,10.94190509,4312.2,4312.1,0.74050001]
[1757458109452,10.94190509,4312.2,4312.1,1.19060001]
[1757458109453,2.66718142,4312.2,4312.1,1.19060001]
[1757458109610,6.1690019,4312.2,4312.1,1.19060001]
[1757458110138,2.3200019,4312.2,4312.1,1.19060001]
[1757458110351,0.001,4312.2,4312.1,1.19060001]
[1757458110647,3.85,4312.2,4312.1,1.19060001]
[1757458111847,3.85,4312.2,4312.1,1.42796001]
[1757458112855,3.85,4312.2,4312.1,1.30580001]
[1757458120798,0.001,4312.2,4312.1,1.30580001]
[1757458121100,3.85,4312.2,4312.1,1.30580001]
[1757458122759,3.85,4312.2,4312.1,0.40360001]
[1757458122961,6.1690019,4312.2,4312.1,0.00200001]
[1757458123168,8.29061234,4312.2,4312.1,0.00200001]
[1757458123407,7.3982019,4312.2,4312.1,0.00200001]
[1757458123786,6.9031019,4312.2,4312.1,0.00200001]
[1757458125002,6.4669019,4312.2,4312.1,0.00200001]
[1757458127932,6.1690019,4312.2,4312.1,0.00200001]
[1757458128317,6.4669019,4312.2,4312.1,0.00200001]
[1757458129007,6.9031019,4312.2,4312.1,0.00200001]
[1757458131140,6.4669019,4312.2,4312.1,0.00200001]
[1757458131705,6.1690019,4312.2,4312.1,0.00200001]
[1757458132842,3.85,4312.2,4312.1,0.30540001]
[1757458133046,3.85,4312.2,4312.1,0.75660001]
[1757458133219,6.1690019,4312.2,4312.1,0.75660001]
[1757458133729,3.85,4312.2,4312.1,0.75660001]
[1757458134346,6.1690019,4312.2,4312.1,0.75660001]
[1757458135142,5.63,4312.2,4312.1,0.75660001]
[1757458135480,9.73068393,4312.2,4312.1,0.00200001]
[1757458136585,10.22578393,4312.2,4312.1,0.00200001]
[1757458137554,9.73068393,4312.2,4312.1,0.00200001]
[1757458139288,8.6831019,4312.2,4312.1,0.00200001]
[1757458141090,1.781,4312.2,4312.1,0.00200001]
[1757458141259,5.629,4312.2,4312.1,0.00200001]
[1757458141584,7.9480019,4312.2,4312.1,0.00200001]
[1757458142157,8.7099019,4312.2,4312.1,0.00200001]
[1757458142363,9.88309395,4312.2,4312.1,0.00200001]
[1757458142682,10.34539395,4312.2,4312.1,0.00200001]
[1757458143468,10.69314664,4312.2,4312.1,0.00200001]
[1757458144786,14.98572838,4312.2,4312.1,0.00200001]
[1757458145471,14.98572838,4312.2,4311.8,0.027]
[1757458145472,3.11110946,4312.0,4311.8,0.027]
[1757458145677,18.82063447,4312.0,4311.8,0.027]
[1757458145986,20.54541621,4312.0,4311.8,0.027]
[1757458146187,20.63826122,4312.0,4311.8,0.027]
[1757458147178,16.79026122,4312.0,4311.8,0.027]
[1757458147363,20.63826122,4312.0,4311.8,0.027]
[1757458147874,20.63926122,4312.0,4311.8,0.027]
[1757458153108,24.47226122,4312.0,4311.8,0.027]
[1757458153321,20.63926122,4312.0,4311.8,0.027]
[1757458153612,16.79026122,4312.0,4311.8,0.027]
[1757458153918,20.63926122,4312.0,4311.8,0.027]
[1757458154278,16.79026122,4312.0,4311.8,0.027]
[1757458154479,20.63926122,4312.0,4311.8,0.027]
[1757458154685,12.66861513,4312.0,4311.9,0.2941]
[1757458154914,11.87661513,4312.0,4311.9,0.2941]
[1757458155217,11.87661513,4312.0,4311.9,0.002]
[1757458155416,12.18661513,4312.0,4311.9,0.002]
[1757458155613,12.63851513,4312.0,4311.9,0.002]
[1757458155978,11.87661513,4312.0,4311.9,0.002]
[1757458156180,11.87661513,4312.0,4311.9,0.2941]
[1757458156181,8.65927361,4312.0,4311.9,0.2941]
[1757458156381,4.67986244,4312.0,4311.9,0.7641]
[1757458156579,6.26095447,4312.0,4311.9,0.7641]
[1757458156819,6.57095447,4312.0,4311.9,0.002]
[1757458157016,7.02285447,4312.0,4311.9,0.002]
[1757458157819,6.57095447,4312.0,4311.9,0.002]
[1757458157974,8.83886244,4312.0,4311.9,0.002]
[1757458163522,9.29076244,4312.0,4311.9,0.002]
[1757458166705,8.83886244,4312.0,4311.9,0.002]
[1757458167286,9.05567648,4312.0,4311.9,0.002]
[1757458167888,9.05667648,4312.0,4311.9,0.002]
[1757458168302,9.63869837,4312.0,4311.9,0.002]
[1757458172525,10.13904424,4312.0,4311.9,0.002]
[1757458173277,9.37714424,4312.0,4311.9,0.002]
[1757458174667,9.68464424,4312.0,4311.9,0.002]
[1757458176755,10.12944424,4312.0,4311.9,0.002]
[1757458178770,9.68464424,4312.0,4311.9,0.002]
[1757458179104,9.37714424,4312.0,4311.9,0.002]
[1757458180205,9.37761489,4312.0,4311.9,0.002]
[1757458180608,9.37761489,4312.0,4311.9,0.3038]
[1757458181009,9.37761489,4312.0,4311.9,0.791]
[1757458181804,9.37761489,4312.0,4311.9,0.002]
[1757458181972,10.12991489,4312.0,4311.9,0.002]
[1757458182174,10.58281489,4312.0,4311.9,0.002]
[1757458183107,13.58281489,4312.0,4311.9,0.002]
[1757458183309,4.69775245,4312.0,4311.9,1.368]
[1757458183510,3.85,4312.0,4311.9,1.368]
[1757458183709,3.85,4312.0,4311.9,1.46080237]
[1757458184213,3.85,4312.0,4311.9,3.77996561]
[1757458185198,0.001,4312.0,4311.9,3.77996561]
[1757458185397,3.88,4312.0,4311.9,4.39278294]
[1757458188616,3.88,4312.0,4311.9,2.0736197]
[1757458188791,3.88,4312.0,4311.9,1.98081733]
[1757458189104,3.88,4312.0,4311.9,4.29998057]
[1757458190778,3.88,4312.0,4311.9,1.98081733]
[1757458190980,3.88,4312.0,4311.9,4.29998057]
[1757458191179,3.88,4312.0,4311.9,1.98081733]
[1757458191381,3.88,4312.0,4311.9,0.9062]
[1757458191900,3.88,4312.0,4311.9,1.368]
[1757458194020,3.88,4312.0,4311.9,0.9062]
[1757458195422,3.88,4312.0,4311.9,0.419]
[1757458195991,3.88,4312.0,4311.9,0.1172]
[1757458200541,3.88,4312.0,4311.9,0.419]
[1757458201543,3.88,4312.0,4311.9,0.9062]
[1757458201718,0.001,4312.0,4311.9,0.9062]
[1757458201906,3.872,4312.0,4311.9,0.9062]
[1757458204347,3.872,4312.0,4311.9,0.1172]
[1757458204662,4.6211,4312.0,4311.9,0.1172]
[1757458204828,8.09262078,4312.0,4311.9,0.002]
[1757458205036,8.20782078,4312.0,4311.9,0.002]
[1757458206824,1.56181132,4312.0,4311.9,0.002]
[1757458207024,5.1946,4312.0,4311.9,0.002]
[1757458207292,7.51370946,4312.0,4311.9,0.002]
[1757458207744,7.60653207,4312.0,4311.9,0.002]
[1757458208864,3.871,4312.0,4311.9,0.8071]
[1757458209642,0.001,4312.0,4311.9,3.60106324]
[1757458209848,3.871,4312.0,4311.9,3.97558956]
[1757458210027,3.871,4312.0,4311.9,4.09078956]
[1757458210442,0.001,4312.0,4311.9,4.09078956]
[1757458210774,3.871,4312.0,4311.9,4.09078956]
[1757458217990,3.871,4312.0,4311.9,3.61598956]
[1757458222259,3.868,4312.0,4311.9,4.09078956]
[1757458223986,3.868,4312.0,4311.9,3.61598956]
[1757458227573,3.868,4312.0,4311.9,3.11918956]
[1757458230824,0.001,4312.0,4311.9,3.11918956]
[1757458231026,3.865,4312.0,4311.9,3.11918956]
[1757458231406,3.865,4312.0,4311.9,2.74466324]
[1757458231727,0.001,4312.0,4311.9,3.24146324]
[1757458231931,3.865,4312.0,4311.9,3.71016324]
[1757458233220,3.865,4312.0,4311.9,6.71016324]
[1757458233221,0.001,4312.0,4311.9,6.71016324]
[1757458233543,0.001,4312.0,4311.9,9.11096428]
[1757458234221,0.001,4312.0,4311.9,9.90296428]
[1757458235312,0.001,4312.0,4311.9,9.53609383]
[1757458238236,0.001,4312.0,4311.9,9.06739383]
[1757458238413,0.001,4312.0,4311.9,9.53609383]
[1757458240666,0.001,4312.2,4312.1,6.11105568]
[1757458240839,0.001,4312.2,4312.1,18.73181823]
[1757458241163,0.001,4312.2,4312.1,19.96421823]
[1757458241703,0.001,4312.5,4312.4,6.11089435]
[1757458241914,0.001,4312.5,4312.4,9.97389435]
[1757458242114,0.001,4312.5,4312.4,11.32149435]
[1757458242329,0.001,4312.5,4312.4,13.35542494]
[1757458245154,0.001,4312.5,4312.4,13.72229539]
[1757458248441,0.001,4312.5,4312.4,19.96143966]
[1757458249863,0.001,4312.5,4312.4,19.12586921]
[1757458255563,0.3039,4312.5,4312.4,18.36216921]
[1757458255774,0.7401,4312.5,4312.4,18.36216921]
[1757458256359,0.3039,4312.5,4312.4,18.36216921]
[1757458256565,0.001,4312.5,4312.4,18.36216921]
[1757458256756,0.001,4312.5,4312.4,18.65306921]
[1757458261780,0.001,4312.5,4312.4,18.36216921]
[1757458265898,0.001,4312.5,4312.4,18.64726921]
[1757458266076,0.001,4312.5,4312.4,19.10926921]
[1757458266267,0.001,4312.5,4312.4,18.64726921]
[1757458266690,0.001,4312.5,4312.4,19.10926921]
[1757458267602,0.001,4312.5,4312.4,19.55906921]
[1757458268019,1.2082,4312.5,4312.4,18.35416921]
[1757458268597,0.7279,4312.5,4312.4,18.35416921]
[1757458269128,0.001,4312.5,4312.4,18.35416921]
[1757458271238,0.001,4312.5,4312.4,20.01127664]
[1757458271709,0.001,4312.5,4312.4,18.35416921]
[1757458272200,0.001,4312.5,4312.4,20.01286537]
[1757458275024,0.001,4312.5,4312.4,16.15786537]
[1757458275424,0.001,4312.5,4312.4,20.01086537]
[1757458276715,0.001,4312.5,4312.4,18.35216921]
[1757458277133,0.001,4312.5,4312.4,18.63726921]
[1757458277332,0.001,4312.5,4312.4,19.09926921]
[1757458277565,1e-08,4313.1,4312.7,0.792]
[1757458277862,0.025,4313.8,4313.2,6.11046424]
[1757458278059,0.025,4313.8,4313.2,9.96546424]
[1757458278358,0.025,4313.8,4313.2,13.15330869]
[1757458278560,0.025,4313.8,4313.3,3.792]
[1757458278865,0.025,4313.8,4313.5,0.792]
[1757458279056,0.025,4313.8,4313.6,11.29837966]
[1757458279224,0.025,4313.8,4313.6,17.51434144]
[1757458279647,0.025,4313.8,4313.6,17.97634144]
[1757458280033,0.025,4313.8,4313.6,17.51434144]
[1757458281166,0.025,4313.8,4313.6,17.22924144]
[1757458283755,0.2894,4313.7,4313.6,17.22924144]
[1757458284456,0.001,4313.7,4313.6,17.22924144]
[1757458286047,0.001,4313.7,4313.6,17.51434144]
[1757458286257,0.001,4313.7,4313.6,17.97634144]
[1757458286458,0.001,4313.7,4313.6,18.42614144]
[1757458287492,0.001,4313.7,4313.6,18.54134144]
[1757458287655,0.001,4313.7,4313.6,18.09154144]
[1757458288464,0.001,4313.7,4313.6,17.62954144]
[1757458292172,0.001,4313.7,4313.6,17.34444144]
[1757458294609,0.001,4313.7,4313.6,17.63834144]
[1757458296668,0.001,4313.7,4313.6,18.10294144]
[1757458296868,0.001,4313.7,4313.6,18.56704144]
[1757458297112,0.001,4313.7,4313.6,18.10294144]
[1757458297885,0.001,4313.7,4313.6,17.34444144]
[1757458298798,0.001,4313.7,4313.6,17.63834144]
[1757458298998,0.3169,4313.7,4313.6,17.34444144]
[1757458299721,0.001,4313.7,4313.6,17.34444144]
[1757458301112,0.001,4313.7,4313.6,17.63834144]
[1757458301609,0.001,4313.7,4313.6,18.10294144]
[1757458305286,0.001,4313.7,4313.6,19.75943705]
[1757458305481,0.001,4313.7,4313.6,20.22353705]
[1757458305910,0.001,4313.7,4313.6,19.75943705]
[1757458306420,0.001,4313.7,4313.6,18.10294144]
[1757458307012,0.001,4313.7,4313.6,17.63834144]
[1757458309819,0.001,4314.2,4314.0,0.792]
[1757458309985,0.001,4314.2,4314.1,12.3972587]
[1757458310184,0.001,4314.2,4314.1,12.82951252]
[1757458310429,0.001,4314.2,4314.1,18.55632695]
[1757458310603,0.001,4314.2,4314.1,19.44745605]
[1757458310997,0.026,4314.8,4314.5,2.31776567]
[1757458311198,0.026,4314.8,4314.5,9.19094332]
[1757458311401,0.026,4314.8,4314.5,11.02502173]
[1757458311806,0.026,4314.8,4314.5,11.81702173]
[1757458311994,0.026,4314.8,4314.5,12.11092173]
[1757458313429,0.026,4314.8,4314.5,11.81702173]
[1757458314124,0.026,4314.8,4314.5,12.11092173]
[1757458314634,0.3169,4314.6,4314.5,11.81702173]
[1757458315407,0.761,4314.6,4314.5,11.81702173]
[1757458317005,0.3169,4314.6,4314.5,11.81702173]
[1757458317204,0.001,4314.6,4314.5,11.81702173]
[1757458317411,0.001,4314.6,4314.5,13.76610202]
[1757458318012,0.001,4314.6,4314.5,12.11092173]
[1757458318206,0.001,4314.6,4314.5,13.47100916]
[1757458318715,0.3169,4314.6,4314.5,13.47100916]
[1757458319496,0.761,4314.6,4314.5,11.81702173]
[1757458319935,1.2238,4314.6,4314.5,11.81702173]
[1757458320112,0.761,4314.6,4314.5,11.81702173]
[1757458320321,0.001,4314.6,4314.5,11.81702173]
[1757458322831,0.001,4314.6,4314.5,12.10822173]
[1757458323007,0.001,4314.6,4314.5,14.09651828]
[1757458323215,0.026,4314.8,4314.6,6.10971195]
[1757458323420,0.026,4314.8,4314.6,14.28039924]
[1757458323635,0.026,4314.8,4314.6,14.57159924]
[1757458326052,0.026,4314.8,4314.6,15.04179924]
[1757458326350,0.001,4315.1,4315.0,6.1094971]
[1757458326512,0.001,4315.1,4315.0,10.98234502]
[1757458326714,0.001,4315.5,4315.4,3.10928229]
[1757458326960,0.4663,4315.5,4315.4,17.34069505]